Cogmind - Beta 14 @@@ ROGUE MODE // 2024.08.19 @ 10:58:58 Player: KN-OKO Result: Destroyed by Y-45 Defender with Heavy Assault Rifle Performance ------------- Evolutions (0) 0 Regions Visited (3) 600 Robots Destroyed (30) 150 Value Destroyed (917) 917 Prototype IDs (0) 0 Alien Tech Used (0) 0 Bonus (0) 0 TOTAL SCORE: 1667 Bonus ------- None Cogmind --------- Core Integrity 0/250 Matter 221/300 Energy 66/100 System Corruption 0% Temperature Cool (50) Movement Treading (160) Location -8/Recycling Parts ------- > --- POWER (1) -------- (None) > --- PROPULSION (2) --- Light Treads > --- UTILITY (2) ------ Makeshift Light Armor Plating Makeshift Light Armor Plating > --- WEAPON (2) ------- Subdweller Shrapnel Launcher Makeshift Sword > --- INVENTORY (5) ---- Compact Wheel Subdweller Beam Cannon Subdweller Beam Cannon Subdweller Machine Gun Piercing Trap Peak State ------------ > --- POWER ------------ Light Nuclear Core > --- PROPULSION ------- Improved Treads Subdweller Monowheel > --- UTILITY ---------- Huge Storage Unit Makeshift Light Armor Plating > --- WEAPON ----------- Subdweller Laser Makeshift Hammer > --- INVENTORY -------- Light Treads Improved Treads Improved Treads Subdweller Monowheel Seismic Detector Hardened Light Armor Plating Hardened Light Armor Plating Makeshift Light Armor Plating Makeshift Light Armor Plating Heavy Riot Gun Medium Laser Subdweller Beam Cannon Assault Rifle Battle Rifle Battle Rifle Subdweller Machine Gun Battle Cannon Grenade Launcher Subdweller Shrapnel Launcher Enhanced Flamer Piercing Trap [Rating: 22] Favorites ----------- Power Ion Engine Engine Ion Engine Power Core Light Nuclear Core Propulsion Improved Treads Treads Improved Treads Wheel Subdweller Monowheel Utility Huge Storage Unit Device Seismic Detector Storage Huge Storage Unit Protection Makeshift Light Armor Plating Weapon Subdweller Laser Energy Gun Subdweller Laser Energy Cannon Subdweller Beam Cannon Ballistic Gun Assault Rifle Ballistic Cannon Battle Cannon Launcher Subdweller Shrapnel Launcher Impact Weapon Makeshift Hammer Slashing Weapon Makeshift Sword Build | -11 -10 -10 -8 ------- Run | Yrd Mat Sub Rec Slots Evolved . | . . . . Power . | . . . . Propulsion . | . . . . Utility . | . . . . Weapon . | . . . . Parts Attached 67 | 8 8 45 6 Power 4 | 1 . 2 1 Engine 3 | 1 . 1 1 Core 1 | . . 1 . Reactor . | . . . . Propulsion 17 | 2 2 11 2 Treads 11 | 2 2 6 1 Leg . | . . . . Wheel 6 | . . 5 1 Hover . | . . . . Flight . | . . . . Utility 18 | 2 1 14 1 Device 7 | 1 . 6 . Storage 2 | 1 1 . . Processor . | . . . . Hackware . | . . . . Protection 9 | . . 8 1 Artifact . | . . . . Weapon 28 | 3 5 18 2 Energy Gun 6 | 2 1 3 . Energy Cannon 2 | . . 2 . Ballistic Gun 5 | 1 2 2 . Ballistic Cannon 5 | . . 5 . Launcher 5 | . 2 2 1 Special Weapon . | . . . . Impact Weapon 4 | . . 4 . Slashing Weapon 1 | . . . 1 Piercing Weapon . | . . . . Special Melee Weapon . | . . . . Unidentified Prototypes . | . . . . Parts Lost 9 | . . 7 2 Power 4 | . . 3 1 Propulsion 4 | . . 3 1 Utility . | . . . . Weapon 1 | . . 1 . Highest Loss Streak 2 | . . 2 2 To Critical Strikes . | . . . . Average Slot Usage (%) 96 | . 99 98 85 Engine 10 | . 14 8 11 Core 3 | . . 4 . Treads 21 | . 27 20 13 Wheel 4 | . . 7 2 Device 8 | . 14 8 . Storage 13 | . 14 14 13 Protection 5 | . . 5 14 Energy Gun 12 | . 14 14 . Energy Cannon 4 | . . 4 13 Ballistic Gun 3 | . 13 . 2 Ballistic Cannon 2 | . . 4 . Impact Weapon 2 | . . 3 . Slashing Weapon 1 | . . . 11 Peak Build Rating 22 | 7 9 22 21 Average Rating 13 | 4 8 14 18 On Entrance 8 | . 7 9 18 Naked Turns . | . . . . Heaviest Build 102 | 14 90 102 99 Greatest Support 46 | 40 43 46 20 Greatest Overweight (x) 32 | . 2 5 32 Average Overweight (x) 3 | . . 3 11 Largest Inventory Capacity 25 | 8 25 25 25 Average Capacity 22 | 6 14 25 24 Most Carried 24 | 6 8 23 24 Average Carried 14 | 3 7 15 23 Final Capacity 25 | 8 25 25 5 Final Carried 23 | 6 8 23 5 Class Distribution -------------------- 100% | Mutant Dominant Class ---------------- Mutant | -10/Materials Mutant | -10/Subcaves Mutant | -8/Recycling Resources | -11 -10 -10 -8 ----------- Run | Yrd Mat Sub Rec Matter Collected 1232 | 304 52 790 86 Remotely . | . . . . Salvage Created 818 | 83 71 544 120 Parts 58 | 3 9 34 12 Haulers Intercepted . | . . . . Recyclers Shooed 1 | . 1 . . Parts Field Recycled . | . . . . Retrieved Matter . | . . . . Parts Self-Destructed 11 | . . 11 . Prevented . | . . . . Kills | -11 -10 -10 -8 ------- Run | Yrd Mat Sub Rec Combat Hostiles Destroyed 23 | . 2 19 2 Melee 1 | . . 1 . Guns 6 | . 1 5 . Cannons 7 | . . 7 . AOE 8 | . 1 5 2 Classes Destroyed 10 | 2 3 4 1 Builder 1 | . 1 . . Tunneler 1 | 1 . . . Recycler 2 | 1 . . 1 Turret 2 | . . 2 . Watcher 1 | . 1 . . Swarmer 3 | . . 3 . Grunt 4 | . 2 2 . Protector 2 | . . . 2 Sentry 1 | . . 1 . Subdweller 13 | . . 13 . Best Kill Streak 5 | 1 3 5 2 Combat Bots Only 3 | . 2 3 2 Max Kills in Single Turn 2 | 1 2 2 2 Gunslinging . | . . . . Exploded 2 | . 1 2 2 Melee 1 | . . 1 . Uniques/NPCs Destroyed . | . . . . Combat | -11 -10 -10 -8 -------- Run | Yrd Mat Sub Rec Hostile Shots Fired 152 | . 11 107 34 Missed 53 | . 7 35 11 Damage Taken 2052 | . 56 1545 451 Core 250 | . 17 171 62 Absorbed by Shields . | . . . . Core Remaining (%) 100 | 100 . . . Volleys Fired 88 | 8 13 66 1 Largest 2 | 2 2 2 1 Hottest 140 | 60 70 140 40 Shots Fired 138 | 16 16 105 1 Gun 76 | 16 6 54 . Cannon 43 | . . 43 . Launcher 19 | . 10 8 1 Special . | . . . . Kinetic 54 | 8 3 42 1 Thermal 74 | 8 3 63 . Explosive 10 | . 10 . . Electromagnetic . | . . . . Robot Hit Streak 18 | 10 2 18 2 Robot Miss Streak 3 | 2 3 2 . Penetration Max . | . . . . Secondary Targets . | . . . . Shots Hit Robots 91 | 11 3 75 2 Core Hits 46 | 3 6 32 5 Critical Kills 1 | . . 1 . Critical Parts Destroyed 1 | . . 1 . Critical Strikes 3 | . . 3 . Blast 1 | . . 1 . Smash 2 | . . 2 . Melee Attacks 30 | . . 29 1 Impact 29 | . . 29 . Slashing 1 | . . . 1 Piercing . | . . . . Sneak Attacks 1 | . . . 1 Combat Hostiles . | . . . . Follow-up Attacks . | . . . . Damage Inflicted 2824 | 130 283 2092 319 Guns 778 | 130 41 607 . Cannons 728 | . . 728 . Explosions 1032 | . 235 548 249 Melee 279 | . . 209 70 Ramming 7 | . 7 . . Kinetic 1423 | 66 28 1080 249 Thermal 880 | 64 13 803 . Explosive 235 | . 235 . . Electromagnetic . | . . . . Impact 209 | . . 209 . Slashing 70 | . . . 70 Piercing . | . . . . Highest Corruption . | . . . . Average Corruption . | . . . . Corruption Purged . | . . . . Corruption Blocked . | . . . . Overload Shots . | . . . . Overflow Damage 55 | . . 55 . Projectiles . | . . . . Explosions . | . . . . Melee 55 | . . 55 . Knockbacks 5 | . . 5 . Impact 1 | . . 1 . Kinetic 4 | . . 4 . Secondary . | . . . . Self-Inflicted Damage 95 | . 10 85 . Shots 4 | . 1 3 . Rammed 2 | . 2 . . Targets Rammed 2 | . 2 . . Kicked . | . . . . Crushed . | . . . . Highest Temperature 70 | . 18 70 50 Average Temperature 13 | . 7 14 28 Received Heat Transfer 363 | . 27 183 153 Siege Activations . | . . . . Robots Corrupted 1 | . . 1 . Combat Hostiles 1 | . . 1 . Parts Fried 2 | . . 2 . Impact Corruptions 2 | . . 2 . Robots Melted . | . . . . Combat Hostiles . | . . . . Parts Melted 5 | . . 5 . Heat Transferred 1257 | 150 37 1070 . Parts Sabotaged . | . . . . Parts Stolen . | . . . . Parts Stripped . | . . . . Power Chain Reactions . | . . . . Alert | -11 -10 -10 -8 ------- Run | Yrd Mat Sub Rec Peak Influence 136 | 10 136 . 65 Initial 48 | . 6 . 48 Average 23 | 3 19 . 32 Maximum Alert Level . | . . . . Low Security (%) 100 | 100 100 . 100 Level 1 . | . . . . Level 2 . | . . . . Level 3 . | . . . . Level 4 . | . . . . Level 5 . | . . . . High Security . | . . . . Max Security . | . . . . Squads Dispatched . | . . . . Investigation . | . . . . Extermination . | . . . . Reinforcement . | . . . . Assault . | . . . . Garrison . | . . . . Intercept . | . . . . Searches Triggered . | . . . . Construction Impeded . | . . . . Haulers Reinforced . | . . . . Active Scanning Responses . | . . . . Cargo Convoy Interrupts . | . . . . Stealth | -11 -10 -10 -8 --------- Run | Yrd Mat Sub Rec Distress Signals . | . . . . Communications Jammed . | . . . . Distress Signals . | . . . . Times Spotted 37 | . 8 22 7 Peak Tracking Total 6 | . 2 6 6 Tactical Retreats 1 | . 1 . . Traps | -11 -10 -10 -8 ------- Run | Yrd Mat Sub Rec Traps Triggered 3 | . 1 2 . Indirectly . | . . . . Trap Hack Attempts . | . . . . Triggered . | . . . . Disarmed . | . . . . Reprogrammed . | . . . . Reused . | . . . . Traps Extracted . | . . . . Installed 1 | . . 1 . Triggered . | . . . . Most Traps Carried 1 | . . 1 1 Machines | -11 -10 -10 -8 ---------- Run | Yrd Mat Sub Rec Machines Disabled 5 | . 1 4 . Max in Single Turn 3 | . 1 3 . Machines Repaired . | . . . . Machines Dismantled . | . . . . Machines Sabotaged . | . . . . Overloaded Fab Kills . | . . . . Hacking | -11 -10 -10 -8 --------- Run | Yrd Mat Sub Rec Machines Accessed 11 | . 5 . 6 Terminals 8 | . 4 . 4 Fabricators . | . . . . Repair Stations . | . . . . Recycling Units 3 | . 1 . 2 Scanalyzers . | . . . . Garrison Access . | . . . . Total Hacks 24 | . 11 . 13 Successful 12 | . 2 . 10 Failed 12 | . 9 . 3 Catastrophic 1 | . 1 . . Database Lockouts . | . . . . Manual 21 | . 11 . 10 Terminals 21 | . 10 . 11 Fabricators . | . . . . Repair Stations . | . . . . Recycling Units 3 | . 1 . 2 Scanalyzers . | . . . . Garrison Access . | . . . . Terminal Hacks 1 | . . . 1 Alert Level 1 | . . . 1 Fabricator Hacks . | . . . . Repair Station Hacks . | . . . . Recycling Unit Hacks 2 | . . . 2 Report Inventory 2 | . . . 2 Scanalyzer . | . . . . Garrison Access Hacks . | . . . . Unauthorized Hacks 8 | . 1 . 7 Terminals 8 | . 1 . 7 Assimilate 1 | . 1 . . Botnet 3 | . . . 3 Skim 4 | . . . 4 Fabricators . | . . . . Repair Stations . | . . . . Recycling Units . | . . . . Scanalyzers . | . . . . Garrison Access . | . . . . Data Cores Recovered . | . . . . Used . | . . . . Hacking Detections 9 | . 5 . 4 Full Trace Events . | . . . . Feedback Events . | . . . . Feedback Blocked . | . . . . Robot Schematics Acquired . | . . . . Robots Built . | . . . . Authchips . | . . . . Time . | . . . . Total Robot Build Rating . | . . . . Part Schematics Acquired . | . . . . Parts Built . | . . . . Authchips . | . . . . Time . | . . . . Total Part Build Rating . | . . . . Parts Repaired . | . . . . Time . | . . . . Parts Recycled . | . . . . Recycled Matter . | . . . . Retrieved Matter . | . . . . Retrieved Components . | . . . . Parts Scanalyzed . | . . . . Part Schematics Acquired . | . . . . Parts Damaged . | . . . . Bothacking | -11 -10 -10 -8 ------------ Run | Yrd Mat Sub Rec Used RIF Installer . | . . . . Robots Hacked . | . . . . Non-combat . | . . . . Combat . | . . . . Robot Hacks Applied . | . . . . Relay Couplers Released . | . . . . Fabnet Peak Effective % . | . . . . Robots Rewired . | . . . . Allies Hacked . | . . . . Hacks Repelled . | . . . . Allies | -11 -10 -10 -8 -------- Run | Yrd Mat Sub Rec Total Allies 1 | . 1 . . Largest Group 1 | . 1 . . Highest-Rated Group 10 | . 10 . . Highest-Rated Ally 10 | . 10 . . Total Orders . | . . . . Ally Attacks . | . . . . Total Damage . | . . . . Kills . | . . . . Allies Corrupted . | . . . . Allies Melted . | . . . . Intel | -11 -10 -10 -8 ------- Run | Yrd Mat Sub Rec Robot Analysis Total . | . . . . Derelict Logs Recovered 1 | . . 1 . Drone Launches . | . . . . Drone Recoveries . | . . . . Exploration | -11 -10 -10 -8 ------------- Run | Yrd Mat Sub Rec Turns Passed 4640 | 117 998 2783 742 Spaces Moved 1809 | 50 432 1192 135 Core 38 | 3 . . 35 Treads 854 | 47 432 373 2 Legs . | . . . . Wheels 917 | . . 819 98 Hover . | . . . . Flight . | . . . . Fastest Speed 50 | 50 160 150 150 Average Speed 224 | 153 194 202 539 Slowest Speed 1650 | 160 320 480 1650 Overloaded Moves . | . . . . Propulsion Burnouts . | . . . . Robots Hopped . | . . . . Cave-ins Triggered . | . . . . Exploration Rate (%) 41 | 5 64 76 22 Regions Visited 3 Branch Regions 2 Pre-discovered Areas 1 | . . 1 . Known Exits Taken . | . . . . Unknown Exits Taken 3 | 1 1 1 . Scrap Searched 13 | . . 13 . Spaces Dug 23 | . 14 9 . Terrain Destroyed 156 | . 54 92 10 Melee 2 | . . 2 . Projectile 8 | . . 8 . AOE 146 | . 54 82 10 Terrain Rammed . | . . . . Walls Destroyed . | . . . . Machines Disabled . | . . . . Actions | -11 -10 -10 -8 --------- Run | Yrd Mat Sub Rec Total 2203 | 71 575 1409 148 Wait 149 | . 105 44 . Move 1806 | 49 431 1191 135 Hop . | . . . . Pick Up 34 | 5 8 20 1 Fast Attach 15 | 8 1 5 1 Attach 13 | . . 9 4 Detach 12 | 1 . 8 3 Swap 39 | . 7 31 1 Drop 14 | . 8 5 1 Fire 88 | 8 13 66 1 Melee 30 | . . 29 1 Ram . | . . . . Kick . | . . . . Crush 2 | . 2 . . Escape Stasis . | . . . . Rewire . | . . . . Trap 1 | . . 1 . Miscellaneous . | . . . . Route ------- -11/Scrapyard -10/Materials (discovered 3 exits: [*Mat x2] / [*Sub]) -10/Subcaves (discovered 3 exits: [*Mat x2] / *Rec) -8/Recycling History --------- Turn | Location | Event 12 | -11/Scrapyard | Discovered new exit (range 16) 118 | -11/Scrapyard | Entered Materials 306 | -10/Materials | Build established: Mutant 404 | -10/Materials | Discovered new exit (range 3) 653 | -10/Materials | Discovered new exit (range 3) 1084 | -10/Materials | Discovered new exit (range 10) 1116 | -10/Materials | Entered Subcaves 1126 | -10/Subcaves | Learned location of Zion (-7) 1162 | -10/Subcaves | Shifting Twisted Machinery released Sub. Laser 1297 | -10/Subcaves | Shifting Twisted Machinery released Piercing Trap 1707 | -10/Subcaves | Disturbed a concealed Subdweller 1993 | -10/Subcaves | Discovered new exit (range 9) 2038 | -10/Subcaves | Ambushed by Subdweller buried in earth 2532 | -10/Subcaves | Shifting Twisted Machinery released Sub. Shrapnel Launcher 2533 | -10/Subcaves | Shifting Twisted Machinery released Sub. Beam Cannon 2909 | -10/Subcaves | Core integrity fell below 50% 2948 | -10/Subcaves | Discovered new exit (range 6) 3869 | -10/Subcaves | Discovered new exit (range 13) 3899 | -10/Subcaves | Entered Recycling 4632 | -8/Recycling | Core integrity fell below 20% 4641 | -8/Recycling | Destroyed by Y-45 Defender with Heavy Assault Rifle Last Messages --------------- 04618_ Y-45 Defender springs to life. 04619_ G-47 Trooper springs to life. 04619_ I-25 Savior springs to life. 04622_ Ion Engine destroyed. 04623_ L-31 Rogue springs to life. 04624_ L-31 Rogue destroyed. 04624_ Y-45 Defender destroyed. 04626_ Imp. Treads destroyed. 04626_ D-53 Grenadier destroyed. 04632_ Dropped Huge Storage Unit. 04636_ Acquired Sub. Shrapnel Launcher. 04636_ R-06 Scavenger collects Hvy. Assault Rifle. 04638_ Critical hit (Burn: +37). 04639_ I-25 Savior destroyed. 04639_ Destroyed Power Amplifier. 04639_ I-25 Savior destroyed. 04639_ U-05 Engineer destroyed. 04640_ R-06 Scavenger collects Med. Laser. 04641_ U-05 Engineer lays Concrete. Map ----- +----------------------------------------------------+ | ???????????????????????????????????? | | ???????????????????????????????????? | | ???????????????????????????????????? | | ???????????????????????????????????? | | ???????????????????????????????????? | | ???????????????????????????????????? | | ???????????????????????????????????? | | ???????????????????????????????????? | | ???????????????????????????????????? | | ???????????????????????????????????? | | ???????????????????????????????????? | | ?????##;##########?????????????????? | | ????;i +?????????????????? | | ???#;] * s#? ???????????????? | | ???#;i * # ????????????????? | | ???#; %*a p # ????????????????? | | ???#; Y !!%| Y +?????????????????? | | ???#; *%= #?????????????????? | | ???#; % !k h#?? ??????????????? | | ???#; ! / #?? ??????????????? | | ???#; g % #?# ??????????????? | | ????# t ! lg #?# ??????????????? | | ????# a i r d#?# ??????????????? | | ????# * ! % #?# ??????????????? | | ???????# [=% [ #???# ??????????????? | | ???????# [!@!! #???# #####?????????? | | ???????# ![[[/##???# ??????????? | | ???????# ][| ???# #??????????? | | ???????# ##??# #??????????? | | ???????## ##???# #??????????? | | ????????# u #????# #?########## | | ????????# #????# ### # | | ????????## ##????# T + """ | | ?????????# #?????# ###### # """ | | ??######## ####### #????## ## """ | | ??# # #?????# ## | | ??# """ + #### ####?????# ####### | | ??# """ # #??# #????????# #?????# | | ??# """ # #??# #????????# #?????# | | ??# # #??# #????????# ####### | | ??# """ # #??# #????????# ## | | ??# """ # #??# #????????# ## | | ??# """ # #??# #???????## ## | | ??# # ####+######### # | | ??# "" # # + T + """ | | ??# "Y # # """ #### # """ | | ??# "" # + """ #??##### """ | | ??# # # """ #??????# | | ??######## # """ #??????###### | | ?????????# # """ #???????????? | +----------------------------------------------------+ Best States ------------- Heat Dissipation 25 Energy Generation 14 Energy Capacity 250 Matter Stores 300 Matter Capacity 300 Sight Range 16 Terrain Scan Density 10 Armor Coverage 200 Evasion (%) 40 Recoil Reduction 2 Item Schematics ----------------- None Robot Schematics ------------------ None Fabricated ------------ Nothing Alien Tech Used ----------------- None Achievements -------------- None Challenges ------------ None Game ------ Seed ImpactTowerSpoofer Manual? 0 Play Time 00:21:40 Cumulative 428.0 hours Start 2024.08.19 @ 10:39:23 End 2024.08.19 @ 10:58:58 Sessions 1 Manual Loads 0 Difficulty Rogue Special Mode None Game No. 299 Rogue 299 Adventurer 0 Explorer 0 Win Type - Total 38 Types 32/0/4/2/0/0/0/0/0 Lore% 68 Gallery% 83 Achievement% 71 Wizard Run 0 Options --------- Layout 1 ASCII 0 Keyboard 1 Movement Numpad Keybinds 0 Fullscreen 2 Font 32/SmallcapsGlow Map View 50x35 Zoom Use 0% Tactical HUD 1 Map Filters NONE Filters NONE Steam 1 RUN: 8d037787-cd6c-40b7-9a65-adcd5ca2f7c1